lending/lending_fUSD_20240509
["ID","MTS","AMOUNT","RATE_DAILY","PERIOD"]
[326680056,1715217074929,-151.0,0.000288,7]
[326680057,1715217074947,-151.0,0.000288,7]
[326680058,1715217074958,-151.0,0.000288,7]
[326680059,1715217074969,-151.0,0.00028809,2]
[326680060,1715217074985,-421.0,0.00028823,2]
[326680061,1715217074995,-433.0,0.00028823,2]
[326680062,1715217075009,-150.0,0.00028839,2]
[326680063,1715217075020,-177.35858964,0.00028899,2]
[326680064,1715217075031,-151.05894296,0.00028936,2]
[326680065,1715217075042,-200.0,0.00028941,7]
[326680066,1715217075055,-151.0,0.0002904,7]
[326680067,1715217075073,-151.0,0.0002904,7]
[326680068,1715217075083,-4964.89,0.0002904,2]
[326680069,1715217075094,-319.59,0.00029041,5]
[326680070,1715217075113,-571.38,0.00029041,5]
[326680071,1715217075123,-500.0,0.00029041,5]
[326680072,1715217075140,-500.0,0.00029041,5]
[326680073,1715217075154,-500.0,0.00029041,5]
[326680074,1715217075173,-500.0,0.00029041,5]
[326680075,1715217075189,-500.0,0.00029041,5]
[326680076,1715217075202,-500.0,0.00029041,5]
[326680077,1715217075217,-436.5,0.00029041,5]
[326680078,1715217075229,-500.0,0.00029041,5]
[326680079,1715217075252,-500.0,0.00029041,5]
[326680080,1715217075276,-641.56,0.00029041,5]
[326680081,1715217075288,-323.55,0.00029041,5]
[326680082,1715217075299,-500.0,0.00029041,5]
[326680083,1715217075310,-500.0,0.00029041,5]
[326680084,1715217075324,-500.0,0.00029041,5]
[326680085,1715217075335,-500.0,0.00029041,5]
[326680086,1715217075363,-500.0,0.00029041,5]
[326680087,1715217075379,-500.0,0.00029041,5]
[326680088,1715217075390,-763.22,0.00029041,5]
[326680089,1715217075401,-182.91,0.00029041,5]
[326680090,1715217075415,-260.2,0.00029041,5]
[326680091,1715217075425,-500.0,0.00029041,5]
[326680092,1715217075440,-500.0,0.00029041,5]
[326680093,1715217075454,-500.0,0.00029041,5]
[326680094,1715217075465,-500.0,0.00029041,5]
[326680095,1715217075481,-799.66,0.00029041,5]
[326680096,1715217075490,-500.0,0.00029041,5]
[326680097,1715217075501,-500.0,0.00029041,5]
[326680098,1715217075514,-500.0,0.00029041,5]
[326680099,1715217075528,-500.0,0.00029041,5]
[326680100,1715217075539,-500.0,0.00029041,5]
[326680101,1715217075555,-500.0,0.00029041,5]
[326680102,1715217075566,-522.53,0.00029041,5]
[326680103,1715217075584,-668.1,0.00029041,5]
[326680104,1715217075601,-500.0,0.00029041,5]
[326680105,1715217075615,-500.0,0.00029041,5]
[326680106,1715217075628,-291.52,0.00029041,5]
[326680107,1715217075638,-500.0,0.00029041,5]
[326680108,1715217075658,-500.0,0.00029041,5]
[326680109,1715217075669,-717.74,0.00029041,5]
[326680110,1715217075681,-500.0,0.00029041,5]
[326680111,1715217075692,-567.91,0.00029041,5]
[326680112,1715217075710,-635.19,0.00029041,5]
[326680113,1715217075720,-744.77,0.00029041,5]
[326680114,1715217075731,-747.5,0.00029041,5]
[326680115,1715217075743,-500.0,0.00029041,5]
[326680116,1715217075755,-500.0,0.00029041,5]
[326680117,1715217075772,-224.32,0.00029041,5]
[326680118,1715217075787,-553.13,0.00029041,5]
[326680119,1715217075800,-500.0,0.00029041,5]
[326680120,1715217075811,-600.23,0.00029041,5]
[326680121,1715217075829,-500.0,0.00029041,5]
[326680122,1715217075839,-500.0,0.00029041,5]
[326680123,1715217075852,-617.79,0.00029041,5]
[326680124,1715217075866,-500.0,0.00029041,5]
[326680125,1715217075885,-500.0,0.00029041,5]
[326680126,1715217075898,-500.0,0.00029041,5]
[326680127,1715217075909,-471.42312838,0.00029041,5]
[326680128,1715217075923,-548.94,0.00029041,5]
[326680129,1715217075934,-500.0,0.00029041,5]
[326680130,1715217075952,-500.0,0.00029041,5]
[326680131,1715217075966,-500.0,0.00029041,5]
[326680132,1715217075981,-500.0,0.00029041,5]
[326680133,1715217076006,-500.0,0.00029041,5]
[326680134,1715217076026,-500.0,0.00029041,5]
[326680135,1715217076037,-521.41,0.00029041,5]
[326680136,1715217076049,-1223.4,0.00029041,5]
[326680137,1715217076061,-500.0,0.00029041,5]
[326680138,1715217076072,-923.05,0.00029041,5]
[326680139,1715217076083,-436.26,0.00029041,5]
[326680140,1715217076096,-523.09,0.00029041,5]
[326680141,1715217076107,-579.1,0.00029041,5]
[326680142,1715217076118,-500.0,0.00029041,5]
[326680143,1715217076129,-500.0,0.00029041,5]
[326680144,1715217076148,-500.0,0.00029041,5]
[326680145,1715217076160,-561.42,0.00029041,5]
[326680146,1715217076175,-500.0,0.00029041,5]
[326680147,1715217076190,-500.0,0.00029041,5]
[326680148,1715217076210,-500.0,0.00029041,5]
[326680149,1715217076222,-267.24,0.00029041,5]
[326680150,1715217076236,-500.0,0.00029041,5]
[326680151,1715217076257,-1255.29,0.00029041,5]
[326680152,1715217076268,-1447.73,0.00029041,5]
[326680153,1715217076278,-974.58,0.00029041,5]
[326680154,1715217076294,-500.0,0.00029041,5]
[326680155,1715217076304,-560.84,0.00029041,5]
[326680156,1715217076314,-502.2,0.00029041,5]
[326680157,1715217076332,-949.79,0.00029041,5]
[326680158,1715217076345,-170.25,0.00029041,5]
[326680159,1715217076356,-733.87,0.00029041,5]
[326680160,1715217076372,-500.0,0.00029041,5]
[326680161,1715217076394,-500.0,0.00029041,5]
[326680162,1715217076404,-500.0,0.00029041,5]
[326680163,1715217076423,-500.0,0.00029041,5]
[326680164,1715217076445,-500.0,0.00029041,5]
[326680165,1715217076467,-500.0,0.00029041,5]
[326680166,1715217076480,-500.0,0.00029041,5]
[326680167,1715217076492,-500.0,0.00029041,5]
[326680168,1715217076502,-500.0,0.00029041,5]
[326680169,1715217076513,-500.0,0.00029041,5]
[326680170,1715217076525,-500.0,0.00029041,5]
[326680171,1715217076537,-500.0,0.00029041,5]
[326680172,1715217076551,-307.02,0.00029041,5]
[326680173,1715217076567,-500.0,0.00029041,5]
[326680174,1715217076578,-1398.17,0.00029041,5]
[326680175,1715217076601,-500.0,0.00029041,5]
[326680176,1715217076612,-458.04,0.00029041,5]
[326680177,1715217076623,-500.0,0.00029041,5]
[326680178,1715217076633,-413.76,0.00029041,5]
[326680179,1715217076648,-500.0,0.00029041,5]
[326680180,1715217076661,-1096.98,0.00029041,5]
[326680181,1715217076671,-286.77,0.00029041,5]
[326680182,1715217076688,-500.0,0.00029041,5]
[326680183,1715217076703,-500.0,0.00029041,5]
[326680184,1715217076716,-500.0,0.00029041,5]
[326680185,1715217076726,-1343.49,0.00029041,5]
[326680186,1715217076740,-500.0,0.00029041,5]
[326680187,1715217076754,-500.0,0.00029041,5]
[326680188,1715217076765,-500.0,0.00029041,5]
[326680189,1715217076777,-500.0,0.00029041,5]
[326680190,1715217076790,-500.0,0.00029041,5]
[326680191,1715217076800,-500.0,0.00029041,5]
[326680192,1715217076811,-734.71,0.00029041,5]
[326680193,1715217076822,-184.83,0.00029041,5]
[326680194,1715217076835,-289.58,0.00029041,5]
[326680195,1715217076857,-562.96,0.00029041,5]
[326680196,1715217076869,-336.03,0.00029041,5]
[326680197,1715217076884,-500.0,0.00029041,5]
[326680198,1715217076901,-558.33,0.00029041,5]
[326680199,1715217076911,-500.0,0.00029041,5]
[326680200,1715217076921,-500.0,0.00029041,5]
[326680201,1715217076935,-500.0,0.00029041,5]
[326680202,1715217076945,-256.14,0.00029041,5]
[326680203,1715217076973,-500.0,0.00029041,5]
[326680204,1715217076998,-522.97,0.00029041,5]
[326680205,1715217077015,-500.0,0.00029041,5]
[326680206,1715217077026,-391.02,0.00029041,5]
[326680207,1715217077048,-615.43,0.00029041,5]
[326680208,1715217077058,-500.0,0.00029041,5]
[326680209,1715217077070,-500.0,0.00029041,5]
[326680210,1715217077085,-266.80391197,0.00029041,5]
[326680211,1715217077096,-500.0,0.00029041,5]
[326680212,1715217077112,-1372.69,0.00029041,5]
[326680213,1715217077122,-575.31,0.00029041,5]
[326680214,1715217077142,-795.79,0.00029041,5]
[326680215,1715217077153,-500.0,0.00029041,5]
[326680216,1715217077163,-553.96,0.00029041,5]
[326680217,1715217077173,-500.0,0.00029041,5]
[326680218,1715217077183,-500.0,0.00029041,5]
[326680219,1715217077194,-500.0,0.00029041,5]
[326680220,1715217077209,-645.98,0.00029041,5]
[326680221,1715217077225,-1277.74,0.00029041,5]
[326680222,1715217077235,-500.0,0.00029041,5]
[326680223,1715217077245,-500.0,0.00029041,5]
[326680224,1715217077257,-500.0,0.00029041,5]
[326680225,1715217077267,-500.0,0.00029041,5]
[326680226,1715217077282,-500.0,0.00029041,5]
[326680227,1715217077294,-795.38,0.00029041,5]
[326680228,1715217077306,-1302.13,0.00029041,5]
[326680229,1715217077319,-500.0,0.00029041,5]
[326680230,1715217077335,-500.0,0.00029041,5]
[326680231,1715217077349,-1151.59,0.00029041,5]
[326680232,1715217077364,-500.0,0.00029041,5]
[326680233,1715217077375,-500.0,0.00029041,5]
[326680234,1715217077396,-1280.79,0.00029041,5]
[326680235,1715217077414,-500.0,0.00029041,5]
[326680236,1715217077429,-2.71638966,0.00029041,5]
[326680237,1715217077900,-913.61361034,0.00029041,5]
[326680238,1715217077911,-567.03,0.00029041,5]
[326680239,1715217077927,-500.0,0.00029041,5]
[326680240,1715217077937,-500.0,0.00029041,5]
[326680241,1715217077949,-500.0,0.00029041,5]
[326680242,1715217077962,-500.0,0.00029041,5]
[326680243,1715217077973,-1695.71,0.00029041,5]
[326680244,1715217077985,-815.11,0.00029041,5]
[326680245,1715217077997,-500.0,0.00029041,5]
[326680246,1715217078011,-500.0,0.00029041,5]
[326680247,1715217078029,-959.07,0.00029041,5]
[326680248,1715217078046,-500.0,0.00029041,5]
[326680249,1715217078058,-907.36,0.00029041,5]
[326680250,1715217078073,-205.26,0.00029041,5]
[326680251,1715217078083,-902.04,0.00029041,5]
[326680252,1715217078101,-500.0,0.00029041,5]
[326680253,1715217078129,-500.0,0.00029041,5]
[326680254,1715217078163,-500.0,0.00029041,5]
[326680255,1715217078189,-500.0,0.00029041,5]
[326680256,1715217078204,-552.9,0.00029041,5]
[326680257,1715217078218,-500.0,0.00029041,5]
[326680258,1715217078229,-603.24,0.00029041,5]
[326680259,1715217078246,-573.32,0.00029041,5]
[326680260,1715217078258,-500.0,0.00029041,5]
[326680261,1715217078273,-500.0,0.00029041,5]
[326680262,1715217078283,-1464.38,0.00029041,5]
[326680263,1715217078295,-500.0,0.00029041,5]
[326680264,1715217078307,-391.69225904,0.00029041,5]
[326680265,1715217078323,-766.54774096,0.00029041,5]
[326680266,1715217078333,-500.0,0.00029041,5]
[326680267,1715217078348,-1384.53,0.00029041,5]
[326680268,1715217078359,-500.0,0.00029041,5]
[326680269,1715217078377,-291.15,0.00029041,5]
[326680270,1715217078387,-500.0,0.00029041,5]
[326680271,1715217078409,-700.53,0.00029041,5]
[326680272,1715217078430,-863.3,0.00029041,5]
[326680273,1715217078443,-500.0,0.00029041,5]
[326680274,1715217078459,-1984.81,0.00029041,5]
[326680275,1715217078478,-500.0,0.00029041,5]
[326680276,1715217078495,-1956.29,0.00029041,5]
[326680277,1715217078515,-3582.48,0.00029041,5]
[326680278,1715217078531,-1144.51,0.00029041,5]
[326680279,1715217078549,-500.0,0.00029041,5]
[326680280,1715217078569,-1913.82,0.00029041,5]
[326680281,1715217078579,-500.0,0.00029041,5]
[326680282,1715217078596,-804.16,0.00029041,5]
[326680283,1715217078611,-857.49,0.00029041,5]
[326680284,1715217078628,-1485.56,0.00029041,5]
[326680285,1715217078640,-500.0,0.00029041,5]
[326680286,1715217078650,-500.0,0.00029041,5]
[326680287,1715217078668,-500.0,0.00029041,5]
[326680288,1715217078679,-500.0,0.00029041,5]
[326680289,1715217078693,-1630.34,0.00029041,5]
[326680290,1715217078707,-720.85,0.00029041,5]
[326680291,1715217078721,-934.0,0.00029041,5]
[326680292,1715217078733,-528.7,0.00029041,5]
[326680293,1715217078743,-684.85,0.00029041,5]
[326680294,1715217078769,-1024.94,0.00029041,5]
[326680295,1715217078785,-1538.77,0.00029041,5]
[326680296,1715217078801,-500.0,0.00029041,5]
[326680297,1715217078824,-953.11,0.00029041,5]
[326680298,1715217078848,-398.94,0.00029041,5]
[326680299,1715217078870,-500.0,0.00029041,5]
[326680300,1715217078882,-500.0,0.00029041,5]
[326680301,1715217078906,-500.0,0.00029041,5]
[326680302,1715217078923,-336.96,0.00029041,5]
[326680303,1715217078942,-630.02,0.00029041,5]
[326680304,1715217078964,-784.04,0.00029041,5]
[326680305,1715217078975,-1107.86,0.00029041,5]
[326680306,1715217078986,-907.7,0.00029041,5]
[326680307,1715217078999,-1400.33931904,0.00029041,5]
[326680308,1715217079025,-269.95068096,0.00029041,5]
[326680309,1715217079041,-161.73289603,0.00029041,5]
[326680310,1715217079821,-210.9973,0.00027297,2]
[326680311,1715217079839,-379.8227,0.00027397,2]
[326680313,1715217113917,1000.0,0.00025,120]
[326680314,1715217122137,1000.0,0.00025,120]
[326680315,1715217124339,1000.0,0.00025,120]
[326680316,1715217125776,1000.0,0.00025,120]
[326680317,1715217134113,1000.0,0.00025,120]
[326680318,1715217136654,1000.0,0.00025,120]
[326680319,1715217138736,1000.0,0.00025,120]
[326680320,1715217141416,1000.0,0.00025,120]
[326680321,1715217142060,1000.0,0.00025,120]
[326680322,1715217143415,1000.0,0.00025,120]
[326680323,1715217143582,1000.0,0.00025,120]
[326680324,1715217143744,1000.0,0.00025,120]
[326680325,1715217144077,1000.0,0.00025,120]
[326680326,1715217144196,1000.0,0.00025,120]
[326680327,1715217144599,1000.0,0.00025,120]
[326680328,1715217144656,1000.0,0.00025,120]
[326680329,1715217144707,1000.0,0.00025,120]
[326680330,1715217153467,1000.0,0.00025,120]
[326680331,1715217154317,1000.0,0.00025,120]
[326680332,1715217155094,1000.0,0.00025,120]
[326680333,1715217155385,1000.0,0.00025,120]
[326680334,1715217155521,1000.0,0.00025,120]
[326680335,1715217155588,1000.0,0.00025,120]
[326680336,1715217155629,1000.0,0.00025,120]
[326680337,1715217155726,1000.0,0.00025,120]
[326680338,1715217156995,1000.0,0.00025,120]
[326680339,1715217157072,1000.0,0.00025,120]
[326680340,1715217160808,1000.0,0.00025,120]
[326680341,1715217162656,1000.0,0.00025,120]
[326680342,1715217185063,10071.39290439,0.00025,120]
[326680362,1715218235783,-632.76453344,0.000119,2]
[326680365,1715218235801,-1344.59858299,0.000119,2]
[326680370,1715218235811,-150.0,0.00011999,2]
[326680372,1715218235822,-822.89418516,0.00012,2]
[326680375,1715218235835,-508.47198714,0.00012,2]
[326680378,1715218235847,-635.92,0.00012,2]
[326680382,1715218235859,-9327.48833842,0.00012,2]
[326680385,1715218235870,-188.70189088,0.00013,2]
[326680387,1715218235881,-205.58,0.00019178,2]
[326680388,1715218235892,-3645.8,0.00019726,2]
[326680390,1715218235902,-155.0,0.0002,2]
[326680392,1715218235915,-157.85113269,0.00020997,2]
[326680394,1715218235926,-155.14744708,0.00021121,2]
[326680396,1715218235938,-151.46200078,0.00021406,2]
[326680398,1715218235949,-151.05894297,0.00021483,2]
[326680400,1715218235960,-152.68236172,0.00021502,2]
[326680402,1715218235972,-153.21847456,0.00021752,2]
[326680404,1715218235984,-156.36,0.00021855,2]
[326680406,1715218235996,-6762.66945982,0.000219,2]
[326680408,1715218236008,-250.0,0.00021918,2]
[326680410,1715218236019,-150.59,0.00021918,2]
[326680412,1715218236029,-151.05894297,0.00021945,2]
[326680414,1715218236040,-250.0,0.00021964,2]
[326680416,1715218236051,-103.83050811,0.00021965,2]
[326680431,1715218240803,-51.31693897,0.00021965,2]
[326680434,1715218240813,-500.0,0.00021978,2]
[326680437,1715218240822,-477.49559212,0.00022,2]
[326680440,1715218240833,-308.77265322,0.00022,2]
[326680443,1715218240843,-250.0,0.00022,2]
[326680446,1715218240852,-155.14744708,0.00022023,2]
[326680448,1715218240861,-150.0,0.00022176,2]
[326680450,1715218240871,-154.5,0.0002219,2]
[326680452,1715218240881,-2000.0,0.00022257,2]
[326680455,1715218240891,-152.19,0.00022278,15]
[326680458,1715218240901,-151.46200078,0.00022284,2]
[326680461,1715218240911,-160.02,0.00022329,2]
[326680464,1715218240920,-152.58134114,0.0002233,2]
[326680467,1715218240929,-225.74,0.00022445,2]
[326680470,1715218240938,-152.68236172,0.00022486,2]
[326680473,1715218240947,-225.74,0.00022506,2]
[326680476,1715218240957,-225.74,0.00022568,2]
[326680479,1715218240966,-225.74,0.00022629,2]
[326680482,1715218240975,-225.74,0.00022691,2]
[326680485,1715218240985,-225.74,0.00022753,2]
[326680488,1715218240994,-67.13096225,0.00022774,2]
[326680493,1715218241294,-84.33103853,0.00022774,2]
[326680494,1715218241304,-225.74,0.00022814,2]
[326680495,1715218241313,-84.32485482,0.00022816,2]
[326680496,1715218241326,-92.48514518,0.00022816,2]
[326680497,1715218241335,-1976.11388367,0.00022858,2]
[326680498,1715218241347,-986.9196089,0.00022858,2]
[326680499,1715218241359,-20926.96650743,0.00022858,2]
[326680500,1715218241368,-225.74,0.00022876,2]
[326680501,1715218241378,-225.74,0.00022937,2]
[326680502,1715218241387,-225.74,0.00022999,2]
[326680503,1715218241398,-225.74,0.0002306,2]
[326680504,1715218241407,-152.38976359,0.00023091,2]
[326680505,1715218241416,-225.74,0.00023122,2]
[326680506,1715218241426,-225.74,0.00023184,2]
[326680507,1715218241436,-225.74,0.00023245,2]
[326680508,1715218241445,-225.74,0.00023307,2]
[326680509,1715218241454,-154.5536726,0.00023313,2]
[326680510,1715218241464,-307.08,0.0002336,2]
[326680511,1715218241474,-225.74,0.00023368,2]
[326680512,1715218241483,-2002.05142652,0.000234,2]
[326680513,1715218241492,-225.74,0.0002343,2]
[326680514,1715218241502,-225.74,0.00023491,2]
[326680515,1715218241512,-225.74,0.00023553,2]
[326680516,1715218241522,-225.74,0.00023614,2]
[326680517,1715218241531,-156.25540444,0.00023784,2]
[326680518,1715218241722,-10374.35110752,0.00024,2]
[326680520,1715218249219,-462.585,0.00021855,2]
[326680533,1715218252648,-734.802015,0.00021855,2]
[326680537,1715218252659,-155.0,0.00023999,2]
[326680540,1715218252668,-613.79368294,0.00023999,2]
[326680544,1715218252678,-5963.87580835,0.00024,2]
[326680547,1715218252689,-1443.37711988,0.00024,2]
[326680574,1715218828069,-409.16215093,0.00010935,2]
[326680575,1715218829904,-590.67911507,0.00010935,2]
[326680597,1715219437215,-1998.06206585,0.00010423,2]
[326680599,1715219437225,-162.37534588,0.00010423,2]
[326680600,1715219437235,-155.0,0.00010423,2]
[326680601,1715219437244,-204.34387367,0.00010424,2]
[326680602,1715219437254,-427.91933056,0.00010424,2]
[326680603,1715219437264,-360.45085505,0.00010425,2]
[326680604,1715219437274,-1626.67470856,0.00010426,2]
[326680605,1715219437287,-1430.37123331,0.00010426,2]
[326680606,1715219437296,-326.32137656,0.00010427,2]
[326680607,1715219437306,-454.10158779,0.00010428,2]
[326680608,1715219437339,-1871.72682963,0.00010428,2]
[326680609,1715219437348,-8970.7211,0.00010826,2]
[326680610,1715219437358,-200.0,0.00010933,2]
[326680611,1715219437368,-3392.54850844,0.00010935,2]
[326680612,1715219437378,-250.0,0.00010957,2]
[326680613,1715219437387,-150.99,0.00010957,2]
[326680614,1715219437397,-359.04,0.00010959,2]
[326680615,1715219437407,-299.2,0.00010959,2]
[326680616,1715219437416,-249.33,0.00010959,2]
[326680617,1715219437425,-207.78,0.00010959,2]
[326680618,1715219437435,-173.15,0.00010959,2]
[326680619,1715219437445,-865.75,0.00010959,2]
[326680620,1715219437454,-304.43,0.00010961,2]
[326680621,1715219437463,-150.0,0.00010975,2]
[326680622,1715219437472,-178.41,0.00011016,2]
[326680623,1715219437481,-1500.0,0.0001114,2]
[326680624,1715219437491,-10911.41,0.00011243,2]
[326680625,1715219437502,-176.81,0.00011791,2]
[326680626,1715219437512,-578.39460077,0.000118,2]
[326680627,1715219437522,-160.77,0.00011861,2]
[326680628,1715219437531,-915.17964812,0.00011877,2]
[326680629,1715219437542,-160.77,0.00011923,2]
[326680630,1715219437552,-160.77,0.00011984,2]
[326680631,1715219437562,-488.07399293,0.00011991,2]
[326680632,1715219437571,-265.94745897,0.00011991,2]
[326680633,1715219437583,-328.98309878,0.00011991,2]
[326680634,1715219437591,-155.0,0.00011991,2]
[326680635,1715219437600,-157.62917444,0.00011991,2]
[326680636,1715219437610,-553.71963809,0.00011991,2]
[326680637,1715219437620,-155.0,0.00011991,2]
[326680638,1715219437629,-1244.4085051,0.00011991,2]
[326680639,1715219437638,-320.95413161,0.00011991,2]
[326680640,1715219437648,-3085.93911486,0.00011991,2]
[326680641,1715219437657,-200.1048836,0.00011991,2]
[326680642,1715219437666,-227.12393149,0.00011991,2]
[326680643,1715219437676,-155.0,0.00011991,2]
[326680644,1715219437686,-155.0,0.00011991,2]
[326680645,1715219437698,-155.0,0.00011991,2]
[326680646,1715219437708,-387.6502509,0.00011991,2]
[326680647,1715219437717,-310.64186882,0.00011991,2]
[326680648,1715219437727,-165.39781373,0.00011991,2]
[326680649,1715219437737,-199.57831763,0.00011991,2]
[326680650,1715219437747,-155.0,0.00011992,2]
[326680651,1715219437756,-156.04835279,0.00011992,2]
[326680652,1715219437766,-324.14591879,0.00011992,2]
[326680653,1715219437776,-298.29377173,0.00011997,2]
[326680654,1715219437786,-165.0275284,0.00011997,2]
[326680655,1715219437796,-408.56159911,0.00011998,2]
[326680656,1715219437806,-110210.33543708,0.00011999,2]
[326680657,1715219437815,-10912.9220403,0.00012,2]
[326680658,1715219437825,-1000.0,0.00012,2]
[326680659,1715219437834,-11448.67725188,0.00012,2]
[326680660,1715219437845,-160.77,0.00012046,2]
[326680661,1715219437854,-172.95,0.0001208,2]
[326680662,1715219437864,-160.77,0.00012108,2]
[326680663,1715219437874,-160.77,0.0001217,2]
[326680664,1715219437883,-968.0,0.00012174,2]
[326680665,1715219437893,-160.77,0.00012232,2]
[326680666,1715219437903,-160.77,0.00012293,2]
[326680667,1715219437912,-160.77,0.00012355,2]
[326680668,1715219437921,-160.77,0.00012417,2]
[326680669,1715219437931,-160.77,0.00012479,2]
[326680670,1715219437941,-300.0,0.000125,4]
[326680671,1715219437955,-323.48509529,0.000125,2]
[326680672,1715219437966,-166.09,0.0001257,2]
[326680673,1715219438162,-731.4392052,0.00012579,3]
[326680674,1715219438173,-278960.25078497,0.0001258,2]
[326680675,1715219438183,-600.0,0.000126,4]
[326680676,1715219438195,-900.0,0.000127,4]
[326680677,1715219438204,-1200.0,0.000128,4]
[326680678,1715219438214,-150.0,0.00012897,2]
[326680679,1715219438223,-173.44820364,0.000129,2]
[326680680,1715219438232,-495.36462881,0.000129,2]
[326680681,1715219438242,-1600.0,0.000129,4]
[326680682,1715219438251,-1151.18638074,0.000129,2]
[326680683,1715219438261,-247.11033519,0.000129,2]
[326680684,1715219438270,-152.44421668,0.000129,2]
[326680685,1715219438282,-397.18696465,0.000129,2]
[326680686,1715219438291,-172.35652793,0.000129,2]
[326680687,1715219438301,-1102.16,0.00012932,2]
[326680688,1715219438310,-151.34,0.0001299,2]
[326680689,1715219438320,-151.34,0.0001299,2]
[326680690,1715219438329,-151.34,0.0001299,2]
[326680691,1715219438339,-151.34,0.0001299,2]
[326680692,1715219438348,-151.34,0.0001299,2]
[326680693,1715219438358,-332.47024028,0.0001299,2]
[326680694,1715219438367,-332.47024028,0.0001299,2]
[326680695,1715219438376,-332.47024028,0.0001299,2]
[326680696,1715219438386,-166.09,0.0001299,2]
[326680697,1715219438395,-166.09,0.0001299,2]
[326680698,1715219438405,-178.12197398,0.00012998,2]
[326680699,1715219438414,-174.84052728,0.00012998,2]
[326680700,1715219438424,-160.90073411,0.00012998,2]
[326680701,1715219438433,-305.36506382,0.00012998,2]
[326680702,1715219438444,-990.62994113,0.00012998,2]
[326680703,1715219438453,-156.64002537,0.00012998,2]
[326680704,1715219438463,-1878.64117005,0.00012998,2]
[326680705,1715219438472,-155.56538191,0.00012998,2]
[326680706,1715219438482,-156.18282231,0.00012998,2]
[326680707,1715219438491,-215.98548558,0.00012998,2]
[326680708,1715219438503,-158.52126803,0.00012998,2]
[326680709,1715219438512,-208.27152668,0.00012998,2]
[326680710,1715219438522,-236.56224941,0.00012999,2]
[326680711,1715219438531,-4933.23915409,0.00012999,2]
[326680712,1715219438541,-266316.85019339,0.00013,2]
[326680713,1715219438554,-4937.38464206,0.00013,2]
[326680714,1715219438565,-1277.46,0.00013,2]
[326680715,1715219447105,-161.82,0.00010957,2]
[326680720,1715219447115,-161.82,0.00012327,2]
[326680724,1715219447125,-166.09,0.0001299,2]
[326680728,1715219447135,-56.72604395,0.0001299,2]
[326680733,1715219447151,-109.36395605,0.0001299,2]
[326680735,1715219447160,-166.09,0.0001299,2]
[326680738,1715219447170,-166.09,0.0001299,2]
[326680740,1715219447180,-166.09,0.0001299,2]
[326680742,1715219447190,-104.4487588,0.00013,2]
[326680744,1715219447203,-3056594.91314375,0.00013,2]
[326680745,1715219447212,-188.70189088,0.00013,2]
[326680746,1715219447223,-474.40808339,0.00013,2]
[326680747,1715219447232,-250.0,0.00013331,2]
[326680748,1715219447242,-344.81,0.00013425,2]
[326680749,1715219447252,-968.0,0.00013695,2]
[326680750,1715219447262,-161.82,0.00013697,2]
[326680751,1715219447272,-200.0,0.00013699,2]
[326680752,1715219447284,-500.0,0.00013699,2]